[Event "4NCL Div 1 2018-19"]
[Site "Telford"]
[Date "2019.02.09"]
[Round "5.15"]
[White "Golding, Alex"]
[Black "Makkar, Rajat"]
[Result "1/2-1/2"]
[ECO "C91"]
[WhiteElo "2263"]
[BlackElo "2173"]
[Annotator "NA"]
[PlyCount "123"]
[EventDate "2018.11.10"]
[EventType "team-tourn"]
[EventCountry "GBR"]
[SourceTitle "playchess.com"]
[Source "ChessBase"]
[SourceQuality "1"]
[TimeControl "40/6000+30:3000+30"]

1. e4 {[%emt 0:00:00]} e5 {[%emt 0:00:00]} 2. Nf3 {[%emt 0:00:00]} Nc6 {[%emt 0:00:08]} 3. Bb5 {[%emt 0:00:56]} a6 {[%emt 0:00:08]} 4. Ba4 {[%emt 0:00:04]} Nf6 {[%emt 0:00:07]} 5. O-O {[%emt 0:00:13]} Be7 {[%emt 0:00:10]} 6. Re1 {[%emt 0:00:15]} b5 {[%emt 0:00:13]} 7. Bb3 {[%emt 0:00:05]} d6 {[%emt 0:00:09]} 8. c3 {[%emt 0:00:05]} O-O {[%emt 0:00:08]} 9. d4 {[%emt 0:00:10]} Bg4 {[%emt 0:07:29]} 10. Be3 {[%emt 0:10:29]} Na5 {[%emt 0:11:18]} 11. dxe5 {[%emt 0:01:04]} Bxf3 {[%emt 0:00:29]} 12. Qxf3 {[%emt 0:00:14]} dxe5 {[%emt 0:01:09]} 13. Nd2 {[%emt 0:01:23]} c5 {[%emt 0:09:04]} 14. Rad1 {[%emt 0:02:51]} Nxb3 {[%emt 0:01:49]} 15. axb3 {[%emt 0:00:51]} Qc7 {[%emt 0:02:40]} 16. Nf1 {[%emt 0:00:07]} c4 {[%emt 0:03:14]} 17. bxc4 {[%emt 0:00:07]} Qxc4 {[%emt 0:00:44]} 18. Bg5 {[%emt 0:00:09]} Qe6 {[%emt 0:07:26]} 19. Ne3 {[%emt 0:02:47]} Bc5 {[%emt 0:04:33]} 20. Bxf6 {[%emt 0:03:00]} Bxe3 {[%emt 0:01:16]} 21. Rxe3 {[%emt 0:00:29]} Qxf6 {[%emt 0:00:27]} 22. Qxf6 {[%emt 0:00:06]} gxf6 {[%emt 0:00:04]} 23. Red3 {[%emt 0:00:19]} Rfc8 {[%emt 0:02:05]} 24. Rd6 {[%emt 0:00:41]} Rc4 {[%emt 0:01:56]} 25. f3 {[%emt 0:00:12]} Kg7 {[%emt 0:00:09]} 26. Rb6 {[%emt 0:00:07]} Rac8 {[%emt 0:10:15]} 27. Rd2 {[%emt 0:01:42]} R4c6 {[%emt 0:00:47]} 28. Rb7 {[%emt 0:00:26]} R6c7 {[%emt 0:00:52]} 29. Rxc7 {[%emt 0:00:36]} Rxc7 {[%emt 0:00:01]} 30. Kf2 {[%emt 0:01:57]} b4 {[%emt 0:06:18]} 31. cxb4 {[%emt 0:00:46]} Rb7 {[%emt 0:01:57]} 32. Ke3 {[%emt 0:00:11]} Rxb4 {[%emt 0:00:08]} 33. Kd3 {[%emt 0:00:04]} Kf8 {[%emt 0:05:58]} 34. Kc3 {[%emt 0:00:06]} Rb6 {[%emt 0:05:12]} 35. Rd8+ {[%emt 0:00:06]} Ke7 {[%emt 0:02:34]} 36. Rh8 {[%emt 0:00:16]} Rc6+ {[%emt 0:00:59]} 37. Kb3 {[%emt 0:00:12]} f5 {[%emt 0:02:10]} 38. Rxh7 {[%emt 0:00:10]} fxe4 {[%emt 0:01:31]} 39. fxe4 {[%emt 0:00:06]} Rb6+ {[%emt 0:00:46]} 40. Ka3 {[%emt 0:00:11]} Rg6 {[%emt 0:00:25]} 41. g3 {[%emt 0:50:10]} Rg4 {[%emt 0:50:38]} 42. Rh4 {[%emt 0:01:21]} Rxh4 {[%emt 0:04:59]} 43. gxh4 {[%emt 0:00:06]} f5 {[%emt 0:00:05]} 44. exf5 {[%emt 0:00:04]} Kf6 {[%emt 0:00:05]} 45. Kb3 {[%emt 0:00:52]} Kxf5 {[%emt 0:00:31]} 46. Kc3 {[%emt 0:00:57]} Kg4 {[%emt 0:01:09]} 47. Kd3 {[%emt 0:00:04]} Kf3 {[%emt 0:00:16]} 48. h5 {[%emt 0:00:07]} e4+ {[%emt 0:00:17]} 49. Kc2 {[%emt 0:00:45]} e3 {[%emt 0:00:12]} 50. h6 {[%emt 0:00:04]} e2 {[%emt 0:00:03]} 51. h7 {[%emt 0:00:03]} e1=Q {[%emt 0:00:05]} 52. h8=Q {[%emt 0:00:08]} Qe4+ {[%emt 0:00:42]} 53. Kc3 {[%emt 0:01:09]} Qc6+ {[%emt 0:00:21]} 54. Kd2 {[%emt 0:01:18]} Qd6+ {[%emt 0:00:37]} 55. Kc2 {[%emt 0:00:57]} Qg6+ {[%emt 0:00:16]} 56. Kb3 {[%emt 0:02:06]} Qb6+ {[%emt 0:02:54]} 57. Kc2 {[%emt 0:00:20]} Qg6+ {[%emt 0:00:07]} 58. Kc3 {[%emt 0:01:06]} Qc6+ {[%emt 0:00:30]} 59. Kd2 {[%emt 0:00:48]} Qd6+ {[%emt 0:00:08]} 60. Kc1 {[%emt 0:01:41]} Qf4+ {[%emt 0:00:36]} 61. Kd1 {[%emt 0:00:17]} Qd6+ {[%emt 0:00:10]} 62. Kc2 {[%emt 0:02:05]} 1/2-1/2

[Event "4NCL Div 1 2018-19"]
[Site "Telford"]
[Date "2019.02.09"]
[Round "5.15"]
[White "Hansen, Hans-Peter"]
[Black "Wall, Tim P"]
[Result "1-0"]
[ECO "A28"]
[WhiteElo "2192"]
[BlackElo "2242"]
[Annotator "NA"]
[PlyCount "137"]
[EventDate "2018.11.10"]
[EventType "team-tourn"]
[EventCountry "GBR"]
[SourceTitle "playchess.com"]
[Source "ChessBase"]
[SourceQuality "1"]
[TimeControl "40/6000+30:3000+30"]

1. c4 {[%emt 0:00:00]} e5 {[%emt 0:00:00]} 2. Nc3 {[%emt 0:00:00]} Nf6 {[%emt 0:00:02]} 3. Nf3 {[%emt 0:00:45]} Nc6 {[%emt 0:00:16]} 4. e3 {[%emt 0:01:07]} g6 {[%emt 0:02:24]} 5. d4 {[%emt 0:02:28]} exd4 {[%emt 0:02:32]} (5... d6 6. Be2 Bg7 7. dxe5 Nxe5 8. Nxe5 dxe5 9. Qxd8+ Kxd8 10. e4 Be6 11. Be3 Kc8 12. O-O c6 13. h3 h5 14. Rad1 Bh6 15. Bxh6 Rxh6 16. h4 Kc7 17. g3 Rhh8 {½-½ (39) Le,Q (2728)-Duda,J (2737) Danzhou 2018}) 6. exd4 {[%emt 0:01:07] A28: English Opening: Four Knights Variation} Bg7 {[%emt 0:01:00]} 7. d5 {[%emt 0:02:50]} Qe7+ {[%emt 0:06:23]} 8. Be2 {[%emt 0:08:32]} Ne5 {[%emt 0:01:48]} 9. O-O {[%emt 0:01:07]} d6 {[%emt 0:04:13]} 10. Nd4 {[%emt 0:06:49]} O-O {[%emt 0:01:34]} 11. h3 $146 {[%emt 0:06:12]} ({Predecessor:} 11. Re1 Re8 12. Bf4 Bd7 {1-0 (51) Labussiere,V (2071)-Franca,J (1884) Goiania 2018}) 11... Ned7 {[%emt 0:04:56]} 12. Bg5 {[%emt 0:08:45]} a5 {[%emt 0:06:27]} 13. Re1 {[%emt 0:04:48]} h6 {[%emt 0:05:03]} 14. Bf1 {[%emt 0:04:03]} Qd8 {[%emt 0:00:15]} 15. Be3 {[%emt 0:04:25]} Nc5 {[%emt 0:02:21]} 16. f3 {[%emt 0:02:59]} Re8 {[%emt 0:07:07]} 17. Qd2 {[%emt 0:00:44]} Kh7 {[%emt 0:00:17]} 18. Bf2 {[%emt 0:03:39]} Bd7 {[%emt 0:04:22]} 19. Ndb5 {[%emt 0:03:50]} a4 {[%emt 0:09:53]} 20. Rxe8 {[%emt 0:05:12]} Bxe8 {[%emt 0:02:31]} 21. Re1 {[%emt 0:00:24]} Bd7 {[%emt 0:08:16]} 22. g4 {[%emt 0:15:06]} Bxb5 {[%emt 0:07:46]} 23. Nxb5 {[%emt 0:00:00]} Qd7 {[%emt 0:00:25]} 24. Qd1 {[%emt 0:01:34]} Re8 {[%emt 0:07:46]} 25. b4 {[%emt 0:02:48]} axb3 {[%emt 0:02:17]} 26. axb3 {[%emt 0:00:05]} Rxe1 {[%emt 0:00:21]} 27. Bxe1 {[%emt 0:00:07]} c6 {[%emt 0:09:10]} 28. Nc3 {[%emt 0:05:16]} Qe7 {[%emt 0:02:47]} 29. dxc6 {[%emt 0:06:44]} bxc6 {[%emt 0:00:22]} 30. b4 {[%emt 0:00:35]} Ne6 {[%emt 0:06:02]} 31. Bg3 {[%emt 0:03:13]} Qa7+ {[%emt 0:01:26]} 32. Kh2 {[%emt 0:02:22]} Qa3 {[%emt 0:00:46]} 33. Qd3 {[%emt 0:04:46]} Qxb4 {[%emt 0:02:17]} 34. Bxd6 {[%emt 0:00:13]} Qb2+ {[%emt 0:00:50]} 35. Ne2 {[%emt 0:02:00]} Nd7 {[%emt 0:00:22]} 36. f4 {[%emt 0:00:53]} Nd4 {[%emt 0:00:58]} 37. Kg3 {[%emt 0:00:26]} c5 {[%emt 0:00:34]} 38. Nxd4 {[%emt 0:01:06]} Bxd4 {[%emt 0:00:13]} 39. Be2 {[%emt 0:00:05]} Qb6 {[%emt 0:01:19]} 40. Be7 {[%emt 0:00:26]} Qe6 {[%emt 0:01:23]} 41. Bd8 {[%emt 0:50:14]} Qe8 {[%emt 0:06:48]} 42. Ba5 {[%emt 0:00:00]} Nf6 {[%emt 0:09:58]} 43. Bf3 {[%emt 0:00:00]} Qa4 {[%emt 0:04:10]} 44. Bd8 {[%emt 0:00:00]} Qa1 {[%emt 0:07:29]} 45. Qd1 {[%emt 0:00:00]} Ne4+ {[%emt 0:09:37]} 46. Kg2 {[%emt 0:00:00]} Qb2+ {[%emt 0:00:23]} 47. Qe2 {[%emt 0:00:00]} Nd2 {[%emt 0:00:39]} 48. Bd5 {[%emt 0:00:00]} Qc1 {[%emt 0:04:06]} 49. h4 {[%emt 0:00:00]} Qg1+ {[%emt 0:01:49]} 50. Kh3 {[%emt 0:00:00]} Nf1 {[%emt 0:02:25]} 51. Qg2 {[%emt 0:00:00]} Qe3+ {[%emt 0:00:15]} 52. Qf3 $1 {[%emt 0:00:00]} Qg1 {[%emt 0:04:35]} 53. Qg2 {[%emt 0:00:00]} Qe3+ {[%emt 0:00:42]} 54. Qf3 {[%emt 0:00:00]} Kg7 {[%emt 0:01:33]} 55. Qxe3 {[%emt 0:00:00]} Nxe3 {[%emt 0:00:06]} 56. Kg3 {[%emt 0:00:00]} Nxd5 {[%emt 0:01:45]} 57. cxd5 {[%emt 0:00:00]} c4 {[%emt 0:00:11]} 58. Kf3 {[%emt 0:00:00]} Kf8 {[%emt 0:01:44]} 59. Ke4 {[%emt 0:00:00]} Bg7 {[%emt 0:00:48]} 60. Bc7 {[%emt 0:00:00]} Ke7 {[%emt 0:00:53]} 61. Be5 {[%emt 0:00:03]} f6 {[%emt 0:00:07]} 62. Bb8 {[%emt 0:00:37]} c3 {[%emt 0:01:16]} 63. Kd3 {[%emt 0:01:13]} f5 $2 {[%emt 0:00:53]} (63... h5 $16) 64. gxf5 {[%emt 0:00:13]} gxf5 {[%emt 0:00:05]} 65. Be5 {[%emt 0:00:44]} Bf8 {[%emt 0:00:21]} 66. h5 {[%emt 0:00:20]} Kd7 {[%emt 0:00:15]} 67. Kxc3 {[%emt 0:00:21]} Ke7 {[%emt 0:00:21]} 68. Kc4 {[%emt 0:00:34]} Kd7 {[%emt 0:00:10]} 69. Kb5 {[%emt 0:00:45]} 1-0

[Event "4NCL Div 1 2018-19"]
[Site "Telford"]
[Date "2019.02.09"]
[Round "5.16"]
[White "Purton, Ben J"]
[Black "Ciuksyte, Dagne"]
[Result "1/2-1/2"]
[ECO "B42"]
[WhiteElo "2131"]
[BlackElo "2303"]
[Annotator "NA"]
[PlyCount "138"]
[EventDate "2018.11.10"]
[EventType "team-tourn"]
[EventCountry "GBR"]
[SourceTitle "playchess.com"]
[Source "ChessBase"]
[SourceQuality "1"]
[TimeControl "40/6000+30:3000+30"]

1. e4 {[%emt 0:00:00]} c5 {[%emt 0:00:00]} 2. Nf3 {[%emt 0:00:00]} e6 {[%emt 0:00:02]} 3. d4 {[%emt 0:00:00]} cxd4 {[%emt 0:00:08]} 4. Nxd4 {[%emt 0:00:00]} a6 {[%emt 0:00:05]} 5. Bd3 {[%emt 0:00:09]} Bc5 {[%emt 0:02:14]} 6. Nb3 {[%emt 0:00:15]} Be7 {[%emt 0:00:23]} 7. O-O {[%emt 0:00:25]} Nc6 {[%emt 0:04:03]} 8. f4 {[%emt 0:01:52]} d6 {[%emt 0:02:12]} 9. Be3 {[%emt 0:00:58]} Nf6 {[%emt 0:00:52]} 10. N1d2 {[%emt 0:01:08]} O-O {[%emt 0:11:21]} 11. a4 {[%emt 0:03:26]} e5 {[%emt 0:04:33]} 12. f5 {[%emt 0:00:34]} d5 {[%emt 0:00:57]} 13. c3 {[%emt 0:00:56]} b6 {[%emt 0:21:03]} 14. Qe2 {[%emt 0:04:11]} Bb7 {[%emt 0:07:14]} 15. Bg5 {[%emt 0:00:26]} dxe4 {[%emt 0:08:45]} 16. Nxe4 {[%emt 0:00:46]} Nxe4 {[%emt 0:02:54]} 17. Bxe7 {[%emt 0:00:13]} Nxe7 {[%emt 0:02:00]} 18. Bxe4 {[%emt 0:00:28]} Bxe4 {[%emt 0:00:58]} 19. Qxe4 {[%emt 0:00:06]} Qd5 {[%emt 0:00:13]} 20. Qxd5 {[%emt 0:01:20]} Nxd5 {[%emt 0:00:08]} 21. Rfe1 {[%emt 0:00:17]} f6 {[%emt 0:01:46]} 22. Rad1 {[%emt 0:00:57]} Rfd8 {[%emt 0:04:19]} 23. g4 {[%emt 0:01:08]} h5 {[%emt 0:07:02]} 24. gxh5 {[%emt 0:00:20]} Ne7 {[%emt 0:02:42]} 25. a5 {[%emt 0:00:44]} bxa5 {[%emt 0:04:38]} 26. Nxa5 {[%emt 0:10:22]} Nxf5 {[%emt 0:00:19]} 27. b4 {[%emt 0:00:48]} Kf7 {[%emt 0:02:23]} 28. Nb7 {[%emt 0:00:39]} Rxd1 {[%emt 0:03:02]} 29. Rxd1 {[%emt 0:00:11]} Rc8 {[%emt 0:03:34]} 30. Rf1 {[%emt 0:00:22]} Rb8 {[%emt 0:01:46]} 31. Nc5 {[%emt 0:00:56]} Nd6 {[%emt 0:01:23]} 32. Nxa6 {[%emt 0:01:37]} Rc8 {[%emt 0:01:22]} 33. Nc5 {[%emt 0:00:11]} f5 {[%emt 0:00:58]} 34. Ra1 {[%emt 0:00:30]} e4 {[%emt 0:01:08]} 35. Ra7+ {[%emt 0:00:48]} Kf6 {[%emt 0:00:47]} 36. Kf2 {[%emt 0:00:40]} Nc4 {[%emt 0:05:34]} 37. Nd7+ {[%emt 0:05:07]} Kg5 {[%emt 0:00:35]} 38. Nc5 {[%emt 0:00:35]} Kf6 {[%emt 0:03:44]} 39. h4 {[%emt 0:01:06]} Rh8 {[%emt 0:00:59]} 40. Nd7+ {[%emt 0:01:13]} Ke6 {[%emt 0:00:06]} 41. Nc5+ {[%emt 0:54:56]} Ke5 {[%emt 0:08:34]} 42. Rxg7 {[%emt 0:00:00]} Rxh5 {[%emt 0:00:05]} 43. Kg3 {[%emt 0:00:00]} Rh8 {[%emt 0:00:12]} 44. Nd7+ {[%emt 0:00:00]} Ke6 {[%emt 0:01:42]} 45. b5 {[%emt 0:00:00]} Rd8 {[%emt 0:02:58]} 46. Nc5+ {[%emt 0:00:00]} Kf6 {[%emt 0:00:28]} 47. Rc7 {[%emt 0:00:00]} Rg8+ {[%emt 0:07:35]} 48. Kf2 {[%emt 0:00:00]} e3+ {[%emt 0:00:07]} 49. Kf3 {[%emt 0:00:00]} Re8 {[%emt 0:01:22]} 50. Rc6+ {[%emt 0:00:00]} Kf7 {[%emt 0:01:26]} 51. Rc7+ {[%emt 0:00:00]} Kg6 {[%emt 0:07:10]} 52. Nd3 {[%emt 0:00:00]} Nd2+ {[%emt 0:09:29]} 53. Ke2 {[%emt 0:00:00]} Ne4 {[%emt 0:05:12]} 54. Nf4+ {[%emt 0:00:00]} Kh6 {[%emt 0:01:25]} 55. Rc6+ {[%emt 0:00:00]} Kg7 {[%emt 0:00:24]} 56. Kxe3 {[%emt 0:00:00]} Nxc3+ {[%emt 0:02:01]} 57. Ne6+ {[%emt 0:00:00]} Kf7 {[%emt 0:00:57]} 58. Rxc3 {[%emt 0:00:00]} Rxe6+ {[%emt 0:02:55]} 59. Kf4 {[%emt 0:00:00]} Re4+ {[%emt 0:00:59]} 60. Kg5 {[%emt 0:00:00]} Rg4+ {[%emt 0:02:35]} 61. Kh5 {[%emt 0:00:00]} Rb4 {[%emt 0:00:27]} 62. Rc5 {[%emt 0:00:00]} f4 {[%emt 0:00:56]} 63. Kg5 {[%emt 0:00:00]} f3 {[%emt 0:00:16]} 64. Rf5+ {[%emt 0:00:00]} Kg7 {[%emt 0:00:07]} 65. h5 {[%emt 0:00:00]} f2 {[%emt 0:00:14]} 66. h6+ {[%emt 0:00:00]} Kh7 {[%emt 0:00:35]} 67. Rf7+ {[%emt 0:00:00]} Kg8 {[%emt 0:01:11]} 68. Rxf2 {[%emt 0:00:00]} Rxb5+ {[%emt 0:00:06]} 69. Kg6 {[%emt 0:00:00]} Rb6+ {[%emt 0:00:05]} 1/2-1/2

[Event "4NCL Div 1 2018-19"]
[Site "Telford"]
[Date "2019.02.09"]
[Round "5.16"]
[White "Maroroa, Sue"]
[Black "Frank, Tena"]
[Result "1-0"]
[ECO "B22"]
[WhiteElo "2104"]
[BlackElo "1947"]
[Annotator "NA"]
[PlyCount "71"]
[EventDate "2018.11.10"]
[EventType "team-tourn"]
[EventCountry "GBR"]
[SourceTitle "playchess.com"]
[Source "ChessBase"]
[SourceQuality "1"]
[TimeControl "40/6000+30:3000+30"]

1. e4 {[%emt 0:04:03]} c5 {[%emt 0:00:00]} 2. Nf3 {[%emt 0:00:04]} e6 {[%emt 0:00:00]} 3. c3 {[%emt 0:00:04]} Nf6 {[%emt 0:00:15]} 4. e5 {[%emt 0:00:07]} Nd5 {[%emt 0:00:14]} 5. Bc4 {[%emt 0:00:13]} d6 {[%emt 0:10:27]} 6. d4 {[%emt 0:00:52]} cxd4 {[%emt 0:03:05]} 7. cxd4 {[%emt 0:00:16]} Be7 {[%emt 0:01:42]} 8. O-O {[%emt 0:03:10]} O-O {[%emt 0:02:16]} 9. Nc3 {[%emt 0:01:13]} dxe5 {[%emt 0:06:38]} 10. dxe5 {[%emt 0:00:25]} Nxc3 {[%emt 0:03:38]} 11. bxc3 {[%emt 0:00:04]} Qxd1 {[%emt 0:04:47]} 12. Rxd1 {[%emt 0:00:04]} h6 {[%emt 0:11:33]} 13. Be3 {[%emt 0:05:38]} b6 {[%emt 0:06:17]} 14. a4 {[%emt 0:02:38]} Ba6 {[%emt 0:07:56]} 15. Bb5 {[%emt 0:02:48]} Rc8 {[%emt 0:06:40]} 16. Rd3 {[%emt 0:08:32]} Bb7 {[%emt 0:01:31]} 17. Rad1 {[%emt 0:07:17]} Be4 {[%emt 0:11:20]} 18. Rd4 {[%emt 0:01:55]} Bxf3 {[%emt 0:06:41]} 19. gxf3 {[%emt 0:00:14]} Rxc3 {[%emt 0:03:15]} 20. Rd8+ {[%emt 0:05:19]} Bxd8 {[%emt 0:03:03]} 21. Rxd8+ {[%emt 0:00:04]} Kh7 {[%emt 0:00:14]} 22. Bd2 {[%emt 0:00:26]} Rb3 {[%emt 0:13:38]} 23. Bc4 {[%emt 0:04:27]} Ra3 {[%emt 0:04:15]} 24. Rc8 {[%emt 0:05:11]} Rxa4 {[%emt 0:01:32]} 25. Bb3 {[%emt 0:03:06]} Ra1+ {[%emt 0:00:56]} 26. Kg2 {[%emt 0:00:00]} g6 {[%emt 0:00:08]} 27. Rc7 {[%emt 0:05:19]} Kg8 {[%emt 0:00:53]} 28. Rc8+ {[%emt 0:00:21]} Kg7 {[%emt 0:00:20]} 29. Bb4 {[%emt 0:00:17]} Rb1 {[%emt 0:00:45]} 30. Bf8+ {[%emt 0:02:18]} Kh7 {[%emt 0:00:03]} 31. Bc2 {[%emt 0:03:14]} Rc1 {[%emt 0:00:04]} 32. Bxg6+ {[%emt 0:02:14]} Kxg6 {[%emt 0:00:08]} 33. Rxc1 {[%emt 0:00:02]} Nd7 {[%emt 0:00:27]} 34. Bd6 {[%emt 0:00:05]} Kf5 {[%emt 0:01:38]} 35. Rc7 {[%emt 0:00:29]} Nxe5 {[%emt 0:00:33]} 36. f4 {[%emt 0:00:05]} 1-0

[Event "4NCL Div 1 2018-19"]
[Site "Telford"]
[Date "2019.02.09"]
[Round "5.17"]
[White "Gordon, Stephen J"]
[Black "Gormally, Daniel W"]
[Result "0-1"]
[ECO "E04"]
[WhiteElo "2544"]
[BlackElo "2483"]
[Annotator "ChessBase"]
[PlyCount "74"]
[EventDate "2018.11.10"]
[EventType "team-tourn"]
[EventCountry "GBR"]
[SourceTitle "playchess.com"]
[Source "ChessBase"]
[SourceQuality "1"]
[TimeControl "40/6000+30:3000+30"]

1. Nf3 {[%emt 0:01:57]} Nf6 {[%emt 0:00:00]} 2. c4 {[%emt 0:00:25]} e6 {[%emt 0:00:23]} 3. g3 {[%emt 0:00:28]} d5 {[%emt 0:01:01]} 4. d4 {[%emt 0:00:10]} dxc4 {[%emt 0:00:31]} 5. Bg2 {[%emt 0:00:12]} Nbd7 {[%emt 0:01:58]} 6. O-O {[%emt 0:00:50]} c6 {[%emt 0:01:06]} 7. a4 {[%emt 0:00:49]} a5 {[%emt 0:00:19]} 8. Qc2 {[%emt 0:00:55]} Nd5 {[%emt 0:00:09]} 9. Qxc4 {[%emt 0:01:33]} Be7 {[%emt 0:00:35]} 10. Nc3 {[%emt 0:06:37]} Nb4 {[%emt 0:04:39]} 11. Rd1 {[%emt 0:02:36]} b6 {[%emt 0:04:28]} 12. Bf4 {[%emt 0:06:14]} O-O {[%emt 0:04:03]} 13. Rac1 {[%emt 0:14:57]} Ba6 {[%emt 0:01:42]} 14. Qb3 {[%emt 0:02:24]} Ra7 {[%emt 0:01:12]} 15. Bf1 {[%emt 0:07:55]} Qa8 {[%emt 0:03:47]} 16. h4 {[%emt 0:06:09]} Rd8 {[%emt 0:07:16]} 17. g4 {[%emt 0:18:08]} Nf8 {[%emt 0:04:43]} 18. g5 {[%emt 0:02:01]} Rad7 {[%emt 0:04:48]} 19. h5 {[%emt 0:08:05]} c5 {[%emt 0:00:20]} 20. dxc5 {[%emt 0:01:45]} bxc5 {[%emt 0:04:56]} 21. Rxd7 {[%emt 0:01:38]} Rxd7 {[%emt 0:01:06]} 22. Nb5 {[%emt 0:00:48]} Nd3 {[%emt 0:07:54]} 23. Rc4 {[%emt 0:04:58]} Bb7 {[%emt 0:10:24]} 24. Bg3 {[%emt 0:02:21]} Bxf3 {[%emt 0:12:30]} 25. exf3 {[%emt 0:00:16]} Nb4 {[%emt 0:03:50]} 26. f4 {[%emt 0:05:45]} Qd5 {[%emt 0:01:31]} 27. Be2 {[%emt 0:04:58]} Qd2 {[%emt 0:05:48]} 28. Kf1 {[%emt 0:00:59]} Nd3 {[%emt 0:02:11]} 29. Rc2 {[%emt 0:04:31]} Qe1+ {[%emt 0:00:49]} 30. Kg2 {[%emt 0:00:05]} Nb4 {[%emt 0:00:49]} 31. Bf3 {[%emt 0:00:57]} Nxc2 {[%emt 0:03:08]} 32. Qxc2 {[%emt 0:00:04]} Qd2 {[%emt 0:01:50]} 33. Qb3 {[%emt 0:01:22]} Qb4 {[%emt 0:00:42]} 34. Qe3 {[%emt 0:00:41]} c4 {[%emt 0:02:48]} 35. h6 {[%emt 0:03:05]} Ng6 {[%emt 0:01:40]} 36. f5 {[%emt 0:00:46]} exf5 {[%emt 0:00:26]} 37. Nc3 {[%emt 0:00:31]} Qc5 {[%emt 0:02:15]} 0-1

[Event "4NCL Div 1 2018-19"]
[Site "Telford"]
[Date "2019.02.09"]
[Round "5.18"]
[White "Hunt, Harriet V"]
[Black "Guichard, Pauline"]
[Result "1-0"]
[ECO "C70"]
[WhiteElo "2417"]
[BlackElo "2382"]
[Annotator "ChessBase"]
[PlyCount "123"]
[EventDate "2018.11.10"]
[EventType "team-tourn"]
[EventCountry "GBR"]
[SourceTitle "playchess.com"]
[Source "ChessBase"]
[SourceQuality "1"]
[TimeControl "40/6000+30:3000+30"]

1. e4 {[%emt 0:00:00]} e5 {[%emt 0:00:00]} 2. Nf3 {[%emt 0:00:08]} Nc6 {[%emt 0:00:00]} 3. Bb5 {[%emt 0:00:13]} a6 {[%emt 0:00:00]} 4. Ba4 {[%emt 0:00:07]} g6 {[%emt 0:00:08]} 5. c3 {[%emt 0:06:56]} Bg7 {[%emt 0:00:41]} 6. d4 {[%emt 0:00:35]} exd4 {[%emt 0:00:14]} 7. cxd4 {[%emt 0:00:06]} b5 {[%emt 0:00:13]} 8. Bb3 {[%emt 0:01:09]} d6 {[%emt 0:00:25]} 9. h3 {[%emt 0:04:18]} Nge7 {[%emt 0:02:46]} 10. O-O {[%emt 0:04:16]} O-O {[%emt 0:01:42]} 11. Nc3 {[%emt 0:02:53]} Bb7 {[%emt 0:09:08]} 12. Bg5 {[%emt 0:08:42]} Qd7 {[%emt 0:09:32]} 13. a3 {[%emt 0:05:03]} Na5 {[%emt 0:12:20]} 14. Ba2 {[%emt 0:01:29]} Nc4 {[%emt 0:06:27]} 15. Qe2 {[%emt 0:11:07]} Nb6 {[%emt 0:05:08]} 16. Rfe1 {[%emt 0:08:05]} Rae8 {[%emt 0:01:49]} 17. Qd2 {[%emt 0:05:17]} Nc4 {[%emt 0:08:49]} 18. Bxc4 {[%emt 0:00:31]} bxc4 {[%emt 0:00:05]} 19. Bh6 {[%emt 0:01:18]} Bxh6 {[%emt 0:02:15]} 20. Qxh6 {[%emt 0:00:08]} f6 {[%emt 0:00:44]} 21. d5 {[%emt 0:03:20]} c6 {[%emt 0:03:15]} 22. Rad1 {[%emt 0:02:18]} cxd5 {[%emt 0:02:18]} 23. exd5 {[%emt 0:00:24]} Nf5 {[%emt 0:05:34]} 24. Qf4 {[%emt 0:00:35]} Rc8 {[%emt 0:11:35]} 25. Ne4 {[%emt 0:03:31]} g5 {[%emt 0:01:32]} 26. Qg4 {[%emt 0:00:21]} Rcd8 {[%emt 0:06:40]} 27. Nc3 {[%emt 0:03:29]} Nh4 {[%emt 0:11:54]} 28. Nxh4 {[%emt 0:03:16]} Qxg4 {[%emt 0:00:08]} 29. hxg4 {[%emt 0:00:03]} gxh4 {[%emt 0:00:05]} 30. Re4 {[%emt 0:00:45]} Rc8 {[%emt 0:03:27]} 31. Re6 {[%emt 0:01:31]} Rcd8 {[%emt 0:00:58]} 32. Rd4 {[%emt 0:02:53]} f5 {[%emt 0:03:49]} 33. Re7 {[%emt 0:01:57]} Bc8 {[%emt 0:00:42]} 34. g5 {[%emt 0:00:15]} Rd7 {[%emt 0:01:54]} 35. Rxd7 {[%emt 0:00:53]} Bxd7 {[%emt 0:00:05]} 36. Rxc4 {[%emt 0:00:16]} Kf7 {[%emt 0:00:48]} 37. Rxh4 {[%emt 0:00:26]} Kg6 {[%emt 0:00:25]} 38. Rh6+ {[%emt 0:00:30]} Kxg5 {[%emt 0:00:22]} 39. Rxd6 {[%emt 0:00:05]} Bc8 {[%emt 0:00:22]} 40. Rc6 {[%emt 0:00:48]} h5 {[%emt 0:01:09]} 41. f3 {[%emt 0:51:08]} Kf4 {[%emt 0:06:27]} 42. Kf2 {[%emt 0:00:00]} h4 {[%emt 0:00:23]} 43. Rc4+ {[%emt 0:00:00]} Kg5 {[%emt 0:01:23]} 44. Ne2 {[%emt 0:00:00]} Rd8 {[%emt 0:00:57]} 45. Nf4 {[%emt 0:00:00]} Kf6 {[%emt 0:00:50]} 46. Ke3 {[%emt 0:00:00]} Bd7 {[%emt 0:03:02]} 47. Kd4 {[%emt 0:00:00]} a5 {[%emt 0:00:39]} 48. b4 {[%emt 0:00:00]} axb4 {[%emt 0:00:52]} 49. axb4 {[%emt 0:00:00]} Kg5 {[%emt 0:01:44]} 50. Ke5 {[%emt 0:00:00]} Rb8 {[%emt 0:02:41]} 51. Kd6 {[%emt 0:00:00]} Bb5 {[%emt 0:02:00]} 52. Ne6+ {[%emt 0:00:00]} Kh5 {[%emt 0:00:38]} 53. Rf4 {[%emt 0:00:00]} Bd3 {[%emt 0:01:30]} 54. Rd4 {[%emt 0:00:00]} Bf1 {[%emt 0:01:07]} 55. Nf4+ {[%emt 0:00:00]} Kg5 {[%emt 0:00:47]} 56. Ke7 {[%emt 0:00:00]} Bxg2 {[%emt 0:09:41]} 57. Nxg2 {[%emt 0:00:00]} h3 {[%emt 0:00:06]} 58. Nf4 {[%emt 0:00:00]} Rb7+ {[%emt 0:04:56]} 59. Ke6 {[%emt 0:00:00]} h2 {[%emt 0:00:05]} 60. Nh3+ {[%emt 0:00:00]} Kh5 {[%emt 0:00:38]} 61. Nf2 {[%emt 0:00:00]} Rg7 {[%emt 0:00:19]} 62. d6 {[%emt 0:00:00]} 1-0